fUST/lending_fUST_20250316
["ID","MTS","AMOUNT","RATE_DAILY","PERIOD"]
[356194548,1742063435246,-500.0,8.218e-05,2]
[356194549,1742063435256,-198.15025073,8.218e-05,2]
[356194550,1742063435266,-500.0,8.218e-05,2]
[356194551,1742063435275,-500.0,8.218e-05,2]
[356194552,1742063435285,-500.0,8.218e-05,2]
[356194553,1742063435295,-500.0,8.218e-05,2]
[356194554,1742063435304,-500.0,8.218e-05,2]
[356194555,1742063435314,-500.0,8.218e-05,2]
[356194556,1742063435324,-500.0,8.218e-05,2]
[356194557,1742063435336,-500.0,8.218e-05,2]
[356194558,1742063435345,-192.47911926,8.218e-05,2]
[356194559,1742063435355,-500.0,8.218e-05,2]
[356194560,1742063435364,-516.08505213,8.218e-05,2]
[356194561,1742063435374,-500.0,8.218e-05,2]
[356194562,1742063435384,-500.0,8.218e-05,2]
[356194563,1742063435393,-500.0,8.218e-05,2]
[356194564,1742063435403,-500.0,8.218e-05,2]
[356194565,1742063435413,-500.0,8.218e-05,2]
[356194566,1742063435422,-500.0,8.218e-05,2]
[356194567,1742063435432,-500.0,8.218e-05,2]
[356194568,1742063435441,-500.0,8.219e-05,2]
[356194569,1742063435450,-500.0,8.219e-05,2]
[356194570,1742063435460,-500.0,8.219e-05,2]
[356194571,1742063435469,-500.0,8.219e-05,2]
[356194572,1742063435479,-500.0,8.219e-05,2]
[356194573,1742063435489,-500.0,8.219e-05,2]
[356194574,1742063435499,-500.0,8.219e-05,2]
[356194575,1742063435509,-500.0,8.219e-05,2]
[356194576,1742063435519,-500.0,8.219e-05,2]
[356194577,1742063435528,-500.0,8.219e-05,2]
[356194578,1742063435537,-500.0,8.219e-05,2]
[356194579,1742063435547,-500.0,8.219e-05,2]
[356194580,1742063435557,-500.0,8.219e-05,2]
[356194581,1742063435566,-500.0,8.219e-05,2]
[356194582,1742063435579,-500.0,8.219e-05,2]
[356194583,1742063435589,-500.0,8.219e-05,2]
[356194584,1742063435598,-500.0,8.219e-05,2]
[356194585,1742063435608,-500.0,8.219e-05,2]
[356194586,1742063435619,-500.0,8.219e-05,2]
[356194587,1742063435629,-500.0,8.219e-05,2]
[356194588,1742063435639,-500.0,8.219e-05,2]
[356194589,1742063435649,-500.0,8.219e-05,2]
[356194590,1742063435659,-500.0,8.219e-05,2]
[356194591,1742063435669,-500.0,8.219e-05,2]
[356194592,1742063435679,-500.0,8.219e-05,2]
[356194593,1742063435688,-500.0,8.219e-05,2]
[356194594,1742063435698,-531.42,8.219e-05,2]
[356194595,1742063435707,-558.74,8.219e-05,2]
[356194596,1742063435716,-500.0,8.219e-05,2]
[356194597,1742063435726,-862.88,8.219e-05,2]
[356194598,1742063435735,-500.0,8.219e-05,2]
[356194599,1742063435744,-129.09014279,8.219e-05,2]
[356194605,1742063437839,-370.90985721,8.219e-05,2]
[356194606,1742063437849,-500.0,8.219e-05,2]
[356194607,1742063437861,-129.09014279,8.219e-05,2]
[356194608,1742063437896,-596.86985721,8.219e-05,2]
[356194609,1742063437905,-500.0,8.219e-05,2]
[356194610,1742063437915,-500.0,8.219e-05,2]
[356194611,1742063437960,-500.0,8.219e-05,2]
[356194612,1742063437970,-500.0,8.219e-05,2]
[356194613,1742063437980,-738.05,8.219e-05,2]
[356194614,1742063437989,-500.0,8.219e-05,2]
[356194615,1742063437999,-816.57,8.219e-05,2]
[356194616,1742063438007,-519.02675305,8.219e-05,2]
[356194618,1742063440191,-697.18324695,8.219e-05,2]
[356194619,1742063440200,-500.0,8.219e-05,2]
[356194620,1742063440210,-500.0,8.219e-05,2]
[356194621,1742063440219,-836.52,8.219e-05,2]
[356194622,1742063440228,-500.0,8.219e-05,2]
[356194623,1742063440239,-500.0,8.219e-05,2]
[356194624,1742063440249,-500.0,8.219e-05,2]
[356194625,1742063440259,-500.0,8.219e-05,2]
[356194626,1742063440269,-391.01606811,8.219e-05,2]
[356194627,1742063440279,-781.44,8.219e-05,2]
[356194628,1742063440288,-500.0,8.219e-05,2]
[356194629,1742063440298,-718.73,8.219e-05,2]
[356194630,1742063440309,-500.0,8.219e-05,2]
[356194631,1742063440318,-500.0,8.219e-05,2]
[356194632,1742063440328,-500.0,8.219e-05,2]
[356194633,1742063440338,-400.58868143,8.219e-05,2]
[356194634,1742063440347,-500.0,8.219e-05,2]
[356194635,1742063440356,-500.0,8.219e-05,2]
[356194636,1742063440366,-500.0,8.219e-05,2]
[356194637,1742063440376,-711.27,8.219e-05,2]
[356194638,1742063440386,-500.0,8.219e-05,2]
[356194639,1742063440395,-500.0,8.219e-05,2]
[356194640,1742063440405,-858.37,8.219e-05,2]
[356194641,1742063440415,-500.0,8.219e-05,2]
[356194642,1742063440426,-500.0,8.219e-05,2]
[356194643,1742063440436,-625.18,8.219e-05,2]
[356194644,1742063440446,-500.0,8.219e-05,2]
[356194645,1742063440455,-500.0,8.219e-05,2]
[356194646,1742063440466,-500.0,8.219e-05,2]
[356194647,1742063440476,-518.79,8.219e-05,2]
[356194648,1742063440485,-500.0,8.219e-05,2]
[356194649,1742063440495,-489.37611628,8.219e-05,2]
[356194650,1742063440504,-500.0,8.219e-05,2]
[356194651,1742063440514,-514.83,8.219e-05,2]
[356194652,1742063440523,-500.0,8.219e-05,2]
[356194653,1742063440533,-500.0,8.219e-05,2]
[356194654,1742063440545,-1245.81,8.219e-05,2]
[356194655,1742063440555,-500.0,8.219e-05,2]
[356194656,1742063440565,-500.0,8.219e-05,2]
[356194657,1742063440576,-453.33156309,8.219e-05,2]
[356194658,1742063440586,-5101.26,8.219e-05,2]
[356194659,1742063440596,-500.0,8.219e-05,2]
[356194660,1742063440606,-1412.06,8.219e-05,2]
[356194661,1742063440617,-500.0,8.219e-05,2]
[356194662,1742063440626,-1073.94,8.219e-05,2]
[356194663,1742063440636,-1409.38,8.219e-05,2]
[356194664,1742063440645,-500.0,8.219e-05,2]
[356194665,1742063440656,-500.0,8.219e-05,2]
[356194666,1742063440666,-6901.76,8.219e-05,2]
[356194667,1742063440676,-3607.44,8.219e-05,2]
[356194668,1742063440685,-563.19,8.219e-05,2]
[356194669,1742063440696,-500.0,8.219e-05,2]
[356194670,1742063440705,-568.68,8.219e-05,2]
[356194671,1742063440715,-500.0,8.219e-05,2]
[356194672,1742063440724,-500.0,8.219e-05,2]
[356194673,1742063440733,-500.0,8.219e-05,2]
[356194674,1742063440748,-500.0,8.219e-05,2]
[356194675,1742063440758,-500.0,8.219e-05,2]
[356194676,1742063440769,-834.95,8.219e-05,2]
[356194677,1742063440780,-500.0,8.219e-05,2]
[356194678,1742063440789,-500.0,8.219e-05,2]
[356194679,1742063440799,-500.0,8.219e-05,2]
[356194680,1742063440808,-500.0,8.219e-05,2]
[356194681,1742063440818,-500.0,8.219e-05,2]
[356194682,1742063440827,-817.0,8.219e-05,2]
[356194683,1742063440837,-109.72162138,8.219e-05,2]
[356194695,1742063443052,-390.27837862,8.219e-05,2]
[356194696,1742063443062,-500.0,8.219e-05,2]
[356194697,1742063443071,-500.0,8.219e-05,2]
[356194698,1742063443080,-1983.30755912,8.219e-05,2]
[356194727,1742063445990,-320.12347945,8.219e-05,2]
[356194728,1742063446002,-1306.51452931,8.219e-05,2]
[356194729,1742063446048,-6424.48046282,8.219e-05,2]
[356194732,1742064002093,1225.90393256,0.00011,6]
[356194733,1742064046043,500.0,8e-05,2]
[356194734,1742064065140,500.0,8e-05,2]
[356194735,1742064078589,500.0,8e-05,2]
[356194736,1742064156526,700.0,8e-05,2]
[356194759,1742064632227,-300.0,8.117e-05,2]
[356194760,1742064632238,-500.0,8.118e-05,2]
[356194761,1742064632248,-67.83,8.118e-05,2]
[356194762,1742064632283,-432.17,8.118e-05,2]
[356194763,1742064632293,-500.0,8.118e-05,2]
[356194764,1742064632303,-564.92427259,8.118e-05,2]
[356194765,1742064632313,-500.0,8.118e-05,2]
[356194766,1742064632322,-92.76671429,8.119e-05,2]
[356194768,1742064638147,-677.41019514,8.119e-05,2]
[356194769,1742064638161,-20157.44980035,8.119e-05,2]
[356194770,1742064638174,-12107.56374568,8.119e-05,2]
[356194771,1742064638206,-25073.27503574,8.119e-05,2]
[356194772,1742064638217,-465.97894996,8.135e-05,2]
[356194773,1742064638227,-151.0,8.219e-05,2]
[356194774,1742064638238,-509.28,8.219e-05,2]
[356194775,1742064638248,-500.0,8.219e-05,2]
[356194776,1742064638259,-500.0,8.219e-05,2]
[356194777,1742064638269,-500.0,8.219e-05,2]
[356194778,1742064638279,-500.0,8.219e-05,2]
[356194779,1742064638292,-625.31860737,8.219e-05,2]
[356194780,1742064638303,-500.0,8.219e-05,2]
[356194781,1742064638314,-500.0,8.219e-05,2]
[356194783,1742064638325,-500.0,8.219e-05,2]
[356194786,1742064638336,-500.0,8.219e-05,2]
[356194788,1742064638347,-500.0,8.219e-05,2]
[356194789,1742064638359,-500.0,8.219e-05,2]
[356194790,1742064638370,-500.0,8.219e-05,2]
[356194791,1742064638382,-500.0,8.219e-05,2]
[356194792,1742064638394,-500.0,8.219e-05,2]
[356194793,1742064638405,-500.0,8.219e-05,2]
[356194794,1742064638418,-500.0,8.219e-05,2]
[356194795,1742064638429,-500.0,8.219e-05,2]
[356194796,1742064638439,-695.72,8.219e-05,2]
[356194797,1742064638449,-500.0,8.219e-05,2]
[356194798,1742064638459,-535.46,8.219e-05,2]
[356194799,1742064638469,-707.3,8.219e-05,2]
[356194800,1742064638479,-782.55,8.219e-05,2]
[356194801,1742064638489,-1165.53,8.219e-05,2]
[356194802,1742064638500,-826.93,8.219e-05,2]
[356194803,1742064638511,-500.0,8.219e-05,2]
[356194804,1742064638524,-500.0,8.219e-05,2]
[356194805,1742064638535,-500.0,8.219e-05,2]
[356194806,1742064638546,-500.0,8.219e-05,2]
[356194807,1742064638557,-500.0,8.219e-05,2]
[356194808,1742064638566,-748.88,8.219e-05,2]
[356194809,1742064638576,-622.3785207,8.219e-05,2]
[356194810,1742064638587,-801.66,8.219e-05,2]
[356194811,1742064638598,-500.0,8.219e-05,2]
[356194812,1742064638608,-500.0,8.219e-05,2]
[356194813,1742064638620,-305.11119406,8.219e-05,2]
[356194814,1742064638634,-194.88880594,8.219e-05,2]
[356194815,1742064638644,-500.0,8.219e-05,2]
[356194816,1742064638655,-648.40624607,8.219e-05,2]
[356194817,1742064638666,-500.0,8.219e-05,2]
[356194818,1742064638676,-500.0,8.219e-05,2]
[356194819,1742064638687,-500.0,8.219e-05,2]
[356194820,1742064638700,-681.64,8.219e-05,2]
[356194821,1742064638710,-688.79,8.219e-05,2]
[356194822,1742064638720,-822.6,8.219e-05,2]
[356194823,1742064638730,-500.0,8.219e-05,2]
[356194824,1742064638741,-500.0,8.219e-05,2]
[356194825,1742064638751,-500.0,8.219e-05,2]
[356194826,1742064638762,-500.0,8.219e-05,2]
[356194827,1742064638773,-500.0,8.219e-05,2]
[356194828,1742064638783,-500.0,8.219e-05,2]
[356194829,1742064638794,-500.0,8.219e-05,2]
[356194830,1742064638804,-500.0,8.219e-05,2]
[356194831,1742064638815,-500.0,8.219e-05,2]
[356194832,1742064638826,-500.0,8.219e-05,2]
[356194833,1742064638836,-500.0,8.219e-05,2]
[356194834,1742064638846,-500.0,8.219e-05,2]
[356194835,1742064638857,-500.0,8.219e-05,2]
[356194836,1742064638867,-500.0,8.219e-05,2]
[356194837,1742064638877,-931.41,8.219e-05,2]
[356194838,1742064638888,-1193.9,8.219e-05,2]
[356194839,1742064638898,-500.0,8.219e-05,2]
[356194840,1742064638909,-500.0,8.219e-05,2]
[356194841,1742064638920,-500.0,8.219e-05,2]
[356194842,1742064638930,-1353.22,8.219e-05,2]
[356194843,1742064638940,-500.0,8.219e-05,2]
[356194844,1742064638951,-500.0,8.219e-05,2]
[356194845,1742064638962,-480.4751756,8.219e-05,2]
[356194846,1742064638987,-19.5248244,8.219e-05,2]
[356194847,1742064639000,-751.80139978,8.219e-05,2]
[356194848,1742064639014,-277.39860022,8.219e-05,2]
[356194849,1742064639027,-52.28416514,8.219e-05,2]
[356194850,1742064639042,-447.71583486,8.219e-05,2]
[356194851,1742064639054,-543.448844,8.219e-05,2]
[356194855,1742064640553,-791.3323053,8.219e-05,2]
[356194856,1742064640567,-15.8788507,8.219e-05,2]
[356194857,1742064640578,-539.72,8.219e-05,2]
[356194858,1742064640588,-53.75783998,8.219e-05,2]
[356194859,1742064640601,-3403.37216002,8.219e-05,2]
[356194860,1742064640612,-147.2548098,8.219e-05,2]
[356194861,1742064640630,-352.7451902,8.219e-05,2]
[356194862,1742064640641,-1399.82698135,8.219e-05,2]
[356194863,1742064640696,-423.16002039,8.219e-05,2]
[356194881,1742064643288,-277.1170926,8.219e-05,2]
[356194889,1742064646495,-500.0,8.219e-05,2]
[356194890,1742064646505,-2999.89966156,8.219e-05,2]
[356194891,1742065057694,331.1,0.00014001,30]
[356194892,1742065065353,1440.05,0.00014001,30]
[356194893,1742065724438,160.0,0.00014001,30]
[356194894,1742065756303,154.904647,0.00014001,30]
[356194895,1742065832387,-156.587,8.214e-05,2]
[356194896,1742065832399,-300.0,8.217e-05,2]
[356194897,1742065832411,-284.99158584,8.218e-05,2]
[356194898,1742065832424,-500.0,8.218e-05,2]
[356194899,1742065832438,-500.0,8.218e-05,2]
[356194900,1742065832450,-500.0,8.218e-05,2]
[356194901,1742065832463,-500.0,8.218e-05,2]
[356194902,1742065832476,-500.0,8.218e-05,2]
[356194903,1742065832488,-500.0,8.218e-05,2]
[356194904,1742065832500,-500.0,8.218e-05,2]
[356194905,1742065832512,-231.67399508,8.218e-05,2]
[356194906,1742065832524,-500.0,8.219e-05,2]
[356194907,1742065832536,-151.0,8.219e-05,2]
[356194908,1742065832550,-151.0,8.219e-05,2]
[356194909,1742065832562,-151.0,8.219e-05,2]
[356194910,1742065832574,-151.0,8.219e-05,2]
[356194911,1742065832586,-151.0,8.219e-05,2]
[356194912,1742065832597,-151.0,8.219e-05,2]
[356194913,1742065832610,-500.0,8.219e-05,2]
[356194914,1742065832621,-500.0,8.219e-05,2]
[356194915,1742065832633,-500.0,8.219e-05,2]
[356194916,1742065832645,-500.0,8.219e-05,2]
[356194917,1742065832657,-500.0,8.219e-05,2]
[356194918,1742065832668,-500.0,8.219e-05,2]
[356194919,1742065832680,-500.0,8.219e-05,2]
[356194920,1742065832691,-500.0,8.219e-05,2]
[356194921,1742065832701,-529.43,8.219e-05,2]
[356194922,1742065832711,-500.0,8.219e-05,2]
[356194923,1742065832722,-500.0,8.219e-05,2]
[356194924,1742065832734,-2592.265306,8.219e-05,2]
[356194925,1742065832744,-2592.265306,8.219e-05,2]
[356194926,1742065832755,-2592.265306,8.219e-05,2]
[356194927,1742065832767,-2592.265306,8.219e-05,2]
[356194928,1742065832778,-2592.265306,8.219e-05,2]
[356194929,1742065832790,-2592.265306,8.219e-05,2]
[356194930,1742065832802,-2091.89221119,8.219e-05,2]
[356194931,1742065832817,-500.37309481,8.219e-05,2]
[356194932,1742065832829,-2592.265306,8.219e-05,2]
[356194933,1742065832841,-2592.265306,8.219e-05,2]
[356194934,1742065832853,-2592.265306,8.219e-05,2]
[356194935,1742065832865,-2592.265306,8.219e-05,2]
[356194936,1742065832876,-2592.265306,8.219e-05,2]
[356194937,1742065832889,-2592.265306,8.219e-05,2]
[356194938,1742065832900,-2592.265306,8.219e-05,2]
[356194939,1742065832911,-2592.265306,8.219e-05,2]
[356194940,1742065832921,-2592.265306,8.219e-05,2]
[356194941,1742065832931,-2592.265306,8.219e-05,2]
[356194942,1742065832942,-500.0,8.219e-05,2]
[356194943,1742065832952,-2592.265306,8.219e-05,2]
[356194944,1742065832963,-2592.265306,8.219e-05,2]
[356194945,1742065832975,-2592.265311,8.219e-05,2]
[356194946,1742065832987,-500.0,8.219e-05,2]
[356194947,1742065832999,-500.0,8.219e-05,2]
[356194948,1742065833012,-500.0,8.219e-05,2]
[356194949,1742065833024,-500.0,8.219e-05,2]
[356194950,1742065833034,-500.0,8.219e-05,2]
[356194951,1742065833045,-500.0,8.219e-05,2]
[356194952,1742065833056,-502.13182986,8.219e-05,2]
[356194953,1742065833066,-500.0,8.219e-05,2]
[356194954,1742065833079,-500.0,8.219e-05,2]
[356194955,1742065833090,-666.73,8.219e-05,2]
[356194956,1742065833103,-500.0,8.219e-05,2]
[356194957,1742065833115,-500.0,8.219e-05,2]
[356194958,1742065833128,-500.0,8.219e-05,2]
[356194959,1742065833140,-500.0,8.219e-05,2]
[356194960,1742065833151,-501.78147689,8.219e-05,2]
[356194961,1742065833162,-638.52181314,8.219e-05,2]
[356194962,1742065833172,-500.0,8.219e-05,2]
[356194963,1742065833183,-751.68,8.219e-05,2]
[356194964,1742065833196,-509.53035426,8.219e-05,2]
[356194965,1742065833207,-557.11,8.219e-05,2]
[356194966,1742065833219,-500.0,8.219e-05,2]
[356194967,1742065833239,-500.0,8.219e-05,2]
[356194968,1742065833251,-504.99450472,8.219e-05,2]
[356194969,1742065833263,-787.63,8.219e-05,2]
[356194970,1742065833275,-517.07885779,8.219e-05,2]
[356194971,1742065833287,-521.26233928,8.219e-05,2]
[356194972,1742065833299,-500.0,8.219e-05,2]
[356194973,1742065833311,-509.78440119,8.219e-05,2]
[356194974,1742065833322,-504.1451768,8.219e-05,2]
[356194975,1742065833333,-500.0,8.219e-05,2]
[356194976,1742065833345,-500.0,8.219e-05,2]
[356194977,1742065833357,-500.0,8.219e-05,2]
[356194978,1742065833371,-500.0,8.219e-05,2]
[356194979,1742065833382,-500.0,8.219e-05,2]
[356194980,1742065833405,-500.0,8.219e-05,2]
[356194981,1742065833420,-500.0,8.219e-05,2]
[356194982,1742065833435,-500.0,8.219e-05,2]
[356194983,1742065833449,-500.0,8.219e-05,2]
[356194984,1742065833462,-500.0,8.219e-05,2]
[356194985,1742065833475,-500.0,8.219e-05,2]
[356194986,1742065833489,-516.18499839,8.219e-05,2]
[356194987,1742065833501,-358.36,8.219e-05,2]
[356194988,1742065833514,-500.0,8.219e-05,2]
[356194989,1742065833526,-513.86934559,8.219e-05,2]
[356194990,1742065833538,-1116.97,8.219e-05,2]
[356194991,1742065833551,-548.89,8.219e-05,2]
[356194992,1742065833564,-506.30205965,8.219e-05,2]
[356194993,1742065833576,-500.0,8.219e-05,2]
[356194994,1742065833588,-526.87466086,8.219e-05,2]
[356194995,1742065833599,-500.0,8.219e-05,2]
[356194996,1742065833611,-500.0,8.219e-05,2]
[356194997,1742065833624,-500.0,8.219e-05,2]
[356194998,1742065833635,-500.0,8.219e-05,2]
[356194999,1742065833648,-500.0,8.219e-05,2]
[356195000,1742065833659,-500.0,8.219e-05,2]
[356195001,1742065833672,-500.0,8.219e-05,2]
[356195002,1742065833683,-500.0,8.219e-05,2]
[356195003,1742065833695,-717.68,8.219e-05,2]
[356195004,1742065833706,-500.0,8.219e-05,2]
[356195005,1742065833718,-500.0,8.219e-05,2]
[356195006,1742065833730,-502.63096046,8.219e-05,2]
[356195007,1742065833742,-510.90742348,8.219e-05,2]
[356195008,1742065833753,-500.0,8.219e-05,2]
[356195009,1742065833765,-517.35482175,8.219e-05,2]
[356195010,1742065833777,-509.63325094,8.219e-05,2]
[356195011,1742065833788,-500.0,8.219e-05,2]
[356195012,1742065833800,-634.94519546,8.219e-05,2]
[356195013,1742065833811,-513.44035593,8.219e-05,2]
[356195014,1742065833822,-500.0,8.219e-05,2]
[356195015,1742065833833,-500.0,8.219e-05,2]
[356195016,1742065833845,-511.25435754,8.219e-05,2]
[356195017,1742065833856,-824.65,8.219e-05,2]
[356195018,1742065833868,-500.0,8.219e-05,2]
[356195019,1742065833879,-500.0,8.219e-05,2]
[356195020,1742065833891,-500.0,8.219e-05,2]
[356195021,1742065833903,-500.0,8.219e-05,2]
[356195022,1742065833916,-500.0,8.219e-05,2]
[356195023,1742065833927,-501.98652297,8.219e-05,2]
[356195024,1742065833938,-268.3255239,8.219e-05,2]
[356195025,1742065833949,-500.0,8.219e-05,2]
[356195026,1742065833961,-518.0,8.219e-05,2]
[356195027,1742065833972,-500.0,8.219e-05,2]
[356195028,1742065833983,-500.0,8.219e-05,2]
[356195029,1742065833994,-1000.0,8.219e-05,2]
[356195030,1742065834005,-505.61943638,8.219e-05,2]
[356195031,1742065834016,-500.0,8.219e-05,2]
[356195032,1742065834027,-500.0,8.219e-05,2]
[356195033,1742065834039,-517.60385747,8.219e-05,2]
[356195034,1742065834051,-500.0,8.219e-05,2]
[356195035,1742065834062,-500.0,8.219e-05,2]
[356195036,1742065834074,-509.90239379,8.219e-05,2]
[356195037,1742065834085,-514.32646092,8.219e-05,2]
[356195038,1742065834096,-706.05,8.219e-05,2]
[356195039,1742065834107,-1688.23,8.219e-05,2]
[356195040,1742065834118,-513.96274744,8.219e-05,2]
[356195041,1742065834130,-1688.23,8.219e-05,2]
[356195042,1742065834141,-1688.23,8.219e-05,2]
[356195043,1742065834151,-1688.23,8.219e-05,2]
[356195044,1742065834163,-1688.23,8.219e-05,2]
[356195045,1742065834175,-1688.23,8.219e-05,2]
[356195046,1742065834185,-1688.23,8.219e-05,2]
[356195047,1742065834196,-1688.23,8.219e-05,2]
[356195048,1742065834208,-1688.23,8.219e-05,2]
[356195049,1742065834219,-1688.23,8.219e-05,2]
[356195050,1742065834230,-500.0,8.219e-05,2]
[356195051,1742065834241,-511.00569646,8.219e-05,2]
[356195052,1742065834251,-853.08,8.219e-05,2]
[356195053,1742065834263,-516.70239505,8.219e-05,2]
[356195054,1742065834274,-502.36106873,8.219e-05,2]
[356195055,1742065834284,-500.0,8.219e-05,2]
[356195056,1742065834295,-517.08719902,8.219e-05,2]
[356195057,1742065834306,-500.0,8.219e-05,2]
[356195058,1742065834317,-500.0,8.219e-05,2]
[356195059,1742065834328,-500.0,8.219e-05,2]
[356195060,1742065834339,-507.18932358,8.219e-05,2]
[356195061,1742065834350,-711.89,8.219e-05,2]
[356195062,1742065834363,-500.0,8.219e-05,2]
[356195063,1742065834374,-500.0,8.219e-05,2]
[356195064,1742065834385,-500.0,8.219e-05,2]
[356195065,1742065834396,-502.08013581,8.219e-05,2]
[356195066,1742065834411,-500.0,8.219e-05,2]
[356195067,1742065834423,-500.0,8.219e-05,2]
[356195068,1742065834437,-192.60420399,8.219e-05,2]
[356195069,1742065834449,-515.85701954,8.219e-05,2]
[356195070,1742065834460,-504.48288344,8.219e-05,2]
[356195071,1742065834471,-524.90339331,8.219e-05,2]
[356195072,1742065834483,-500.0,8.219e-05,2]
[356195073,1742065834494,-500.0,8.219e-05,2]
[356195074,1742065834505,-500.0,8.219e-05,2]
[356195075,1742065834517,-500.0,8.219e-05,2]
[356195076,1742065834528,-183.88474207,8.219e-05,2]
[356195077,1742065834539,-528.22161947,8.219e-05,2]
[356195078,1742065834551,-509.40719667,8.219e-05,2]
[356195079,1742065834562,-500.0,8.219e-05,2]
[356195080,1742065834573,-514.86140995,8.219e-05,2]
[356195081,1742065834584,-510.07395233,8.219e-05,2]
[356195082,1742065834595,-516.88696772,8.219e-05,2]
[356195083,1742065834606,-514.03064604,8.219e-05,2]
[356195084,1742065834617,-500.0,8.219e-05,2]
[356195085,1742065834628,-500.0,8.219e-05,2]
[356195086,1742065834638,-500.0,8.219e-05,2]
[356195087,1742065834649,-515.52378848,8.219e-05,2]
[356195088,1742065834661,-500.0,8.219e-05,2]
[356195089,1742065834673,-509.07721046,8.219e-05,2]
[356195090,1742065834683,-517.40106579,8.219e-05,2]
[356195091,1742065834694,-559.98553731,8.219e-05,2]
[356195092,1742065834704,-502.37614225,8.219e-05,2]
[356195093,1742065834715,-500.0,8.219e-05,2]
[356195094,1742065834726,-500.0,8.219e-05,2]
[356195095,1742065834737,-515.50528012,8.219e-05,2]
[356195096,1742065834748,-500.0,8.219e-05,2]
[356195097,1742065834759,-557.03,8.219e-05,2]
[356195098,1742065834769,-500.0,8.219e-05,2]
[356195099,1742065834780,-500.0,8.219e-05,2]
[356195100,1742065834791,-508.84888212,8.219e-05,2]
[356195101,1742065834801,-500.0,8.219e-05,2]
[356195102,1742065834811,-500.0,8.219e-05,2]
[356195103,1742065834823,-515.79,8.219e-05,2]
[356195104,1742065834834,-500.0,8.219e-05,2]
[356195105,1742065834845,-506.90071617,8.219e-05,2]
[356195106,1742065834856,-511.15171828,8.219e-05,2]
[356195107,1742065834866,-500.0,8.219e-05,2]
[356195108,1742065834877,-500.0,8.219e-05,2]
[356195109,1742065834888,-532.49171404,8.219e-05,2]
[356195110,1742065834899,-500.0,8.219e-05,2]
[356195111,1742065834909,-525.9,8.219e-05,2]
[356195112,1742065835231,-502.94234859,8.219e-05,2]
[356195113,1742065835243,-516.23034838,8.219e-05,2]
[356195114,1742065835253,-500.0,8.219e-05,2]
[356195115,1742065835262,-500.0,8.219e-05,2]
[356195116,1742065835272,-500.0,8.219e-05,2]
[356195117,1742065835281,-500.0,8.219e-05,2]
[356195118,1742065835291,-5244.95,8.219e-05,2]
[356195119,1742065835300,-500.0,8.219e-05,2]
[356195120,1742065835310,-500.0,8.219e-05,2]
[356195121,1742065835319,-500.0,8.219e-05,2]
[356195122,1742065835328,-1144.16,8.219e-05,2]
[356195123,1742065835338,-986.31,8.219e-05,2]
[356195124,1742065835348,-500.0,8.219e-05,2]
[356195125,1742065835358,-533.50785357,8.219e-05,2]
[356195126,1742065835370,-500.0,8.219e-05,2]
[356195127,1742065835380,-500.0,8.219e-05,2]
[356195128,1742065835390,-500.0,8.219e-05,2]
[356195129,1742065835399,-520.83122336,8.219e-05,2]
[356195130,1742065835409,-506.38310213,8.219e-05,2]
[356195131,1742065835418,-500.0,8.219e-05,2]
[356195132,1742065835427,-1296.84,8.219e-05,2]
[356195133,1742065835438,-500.0,8.219e-05,2]
[356195134,1742065835448,-500.0,8.219e-05,2]
[356195135,1742065835458,-500.0,8.219e-05,2]
[356195136,1742065835467,-500.0,8.219e-05,2]
[356195137,1742065835477,-500.0,8.219e-05,2]
[356195138,1742065835486,-500.0,8.219e-05,2]
[356195139,1742065835495,-500.0,8.219e-05,2]
[356195140,1742065835505,-500.0,8.219e-05,2]
[356195141,1742065835514,-500.0,8.219e-05,2]
[356195142,1742065835524,-521.8930922,8.219e-05,2]
[356195143,1742065835534,-500.0,8.219e-05,2]
[356195144,1742065835543,-4370.86,8.219e-05,2]
[356195145,1742065835553,-500.0,8.219e-05,2]
[356195146,1742065835563,-781.91,8.219e-05,2]
[356195147,1742065835572,-781.91,8.219e-05,2]
[356195148,1742065835582,-781.91,8.219e-05,2]